[Event "Botvinnik Cup 2018"]
[Site "Moscow"]
[Date "2018.08.11"]
[Round "3"]
[White "Egin, Vladimir"]
[Black "Ceres, Dragos"]
[Result "1-0"]
[ECO "C03"]
[WhiteElo "2317"]
[BlackElo "2211"]
[Annotator "NA"]
[PlyCount "91"]
[EventDate "2018.08.10"]
[EventCountry "RUS"]
[SourceTitle "playchess.com"]
[Source "ChessBase"]
[SourceQuality "1"]
[TimeControl "5400+30"]

1. e4 {[%emt 0:00:00]} e6 {[%emt 0:00:00]} 2. d4 {[%emt 0:00:00]} d5 {[%emt 0:00:00]} 3. Nd2 {[%emt 0:00:13]} Be7 {[%emt 0:00:08]} 4. Bd3 {[%emt 0:01:44]} Nf6 {[%emt 0:00:17]} 5. e5 {[%emt 0:03:43]} Nfd7 {[%emt 0:00:04]} 6. Ne2 {[%emt 0:00:10]} c5 {[%emt 0:01:44]} 7. c3 {[%emt 0:00:10]} Qb6 {[%emt 0:00:10]} 8. O-O {[%emt 0:01:47]} Nc6 {[%emt 0:03:37]} 9. Nf3 {[%emt 0:10:59]} h6 {[%emt 0:02:16]} 10. a3 {[%emt 0:01:49]} a5 {[%emt 0:00:25]} 11. Be3 {[%emt 0:08:09]} g5 {[%emt 0:04:45]} 12. dxc5 {[%emt 0:06:38]} Qc7 {[%emt 0:00:44]} 13. Qa4 {[%emt 0:08:15]} Nxc5 {[%emt 0:01:17]} 14. Bxc5 {[%emt 0:03:53]} Bxc5 {[%emt 0:00:15]} 15. Ned4 {[%emt 0:00:22]} Bd7 {[%emt 0:00:54]} 16. Nb5 {[%emt 0:01:21]} Qb6 {[%emt 0:01:09]} 17. Qg4 {[%emt 0:01:19]} O-O-O {[%emt 0:04:28]} 18. b4 {[%emt 0:00:32]} Be7 {[%emt 0:00:05]} 19. bxa5 {[%emt 0:02:33]} Qxa5 {[%emt 0:00:37]} 20. Qg3 {[%emt 0:04:06]} Rdg8 {[%emt 0:01:44]} 21. Rfb1 {[%emt 0:03:40]} h5 {[%emt 0:00:36]} 22. Nfd4 {[%emt 0:02:06]} Nxd4 {[%emt 0:09:25]} 23. cxd4 {[%emt 0:02:07]} Bc6 {[%emt 0:00:10]} 24. Nd6+ {[%emt 0:00:49]} Bxd6 {[%emt 0:00:33]} 25. exd6 {[%emt 0:00:47]} Kd7 {[%emt 0:00:23]} 26. a4 {[%emt 0:01:13]} f6 {[%emt 0:16:11]} 27. Bb5 {[%emt 0:00:43]} Rc8 {[%emt 0:00:27]} 28. Bxc6+ {[%emt 0:00:45]} Kxc6 {[%emt 0:00:01]} 29. Rb5 {[%emt 0:04:17]} Qd2 {[%emt 0:06:23]} 30. Rab1 {[%emt 0:02:09]} Qxd4 {[%emt 0:00:56]} 31. Rc1+ {[%emt 0:01:16]} Kd7 {[%emt 0:00:07]} 32. Rxb7+ {[%emt 0:00:08]} Kd8 {[%emt 0:00:04]} 33. Rxc8+ {[%emt 0:02:15]} Kxc8 {[%emt 0:00:10]} 34. Rc7+ {[%emt 0:03:38]} Kd8 {[%emt 0:00:14]} 35. h3 {[%emt 0:02:57]} Qb4 {[%emt 0:05:44]} 36. Rf7 {[%emt 0:05:57]} Qb2 {[%emt 0:12:01]} 37. Qe3 {[%emt 0:01:18]} d4 {[%emt 0:04:49]} 38. Qe4 {[%emt 0:03:07]} Qc1+ {[%emt 0:00:50]} 39. Kh2 {[%emt 0:00:01]} Qf4+ {[%emt 0:00:06]} 40. Qxf4 {[%emt 0:00:01]} gxf4 {[%emt 0:00:07]} 41. a5 {[%emt 0:02:09]} Kc8 {[%emt 0:00:59]} 42. a6 {[%emt 0:01:26]} Kb8 {[%emt 0:00:04]} 43. Rb7+ {[%emt 0:00:43]} Ka8 {[%emt 0:00:06]} 44. d7 {[%emt 0:00:14]} Rd8 {[%emt 0:00:13]} 45. Rc7 {[%emt 0:00:39]} Kb8 {[%emt 0:00:02]} 46. Rc8+ {[%emt 0:00:21]} 1-0

[Event "Botvinnik Cup 2018"]
[Site "Moscow"]
[Date "2018.08.11"]
[Round "3"]
[White "Egin, Vladimir"]
[Black "Keller, Rostislav"]
[Result "1/2-1/2"]
[ECO "B51"]
[WhiteElo "2317"]
[BlackElo "1735"]
[Annotator "NA"]
[PlyCount "59"]
[EventDate "2018.08.10"]
[EventCountry "RUS"]
[SourceTitle "playchess.com"]
[Source "ChessBase"]
[SourceQuality "1"]
[TimeControl "5400+30"]

1. e4 {[%emt 0:00:00]} c5 {[%emt 0:00:00]} 2. Nf3 {[%emt 0:00:00]} d6 {[%emt 0:00:00]} 3. Bb5+ {[%emt 0:00:00]} Nd7 {[%emt 0:00:00]} 4. a4 {[%emt 0:00:00]} a6 {[%emt 0:00:33]} 5. Bc4 {[%emt 0:00:51]} Ngf6 {[%emt 0:00:16]} 6. Nc3 {[%emt 0:01:38]} b6 {[%emt 0:00:13]} 7. O-O {[%emt 0:02:03]} e6 {[%emt 0:00:15]} 8. d4 {[%emt 0:00:58]} cxd4 {[%emt 0:01:14]} 9. Qxd4 {[%emt 0:01:00]} Be7 {[%emt 0:01:01]} 10. b3 {[%emt 0:06:52]} O-O {[%emt 0:04:19]} 11. Bb2 {[%emt 0:06:56]} Qc7 {[%emt 0:03:10]} 12. Ne2 {[%emt 0:08:19]} Bb7 {[%emt 0:03:49]} 13. Ng3 {[%emt 0:03:21]} Rfe8 {[%emt 0:01:43]} 14. Rfe1 {[%emt 0:02:47]} Rac8 {[%emt 0:03:14]} 15. Rad1 {[%emt 0:04:21]} Bf8 {[%emt 0:18:40]} 16. h3 {[%emt 0:08:48]} d5 {[%emt 0:07:26]} 17. exd5 {[%emt 0:00:26]} Bc5 18. Qh4 {[%emt 0:00:08]} Bxd5 {[%emt 0:06:20]} 19. Bxd5 {[%emt 0:02:00]} exd5 {[%emt 0:02:12]} 20. Nf5 {[%emt 0:02:41]} Ne4 {[%emt 0:03:05]} 21. Rxe4 {[%emt 0:01:20]} Rxe4 {[%emt 0:22:22]} 22. Qg5 {[%emt 0:00:46]} g6 {[%emt 0:00:07]} 23. Nh6+ {[%emt 0:01:25]} Kf8 {[%emt 0:01:39]} 24. Qxd5 {[%emt 0:04:19]} Re7 {[%emt 0:01:06]} 25. b4 {[%emt 0:09:02]} Bxb4 {[%emt 0:07:28]} 26. Qd4 {[%emt 0:00:37]} Bc3 {[%emt 0:00:13]} 27. Bxc3 {[%emt 0:05:33]} Qxc3 {[%emt 0:00:04]} 28. Qh4 {[%emt 0:00:46]} Qf6 {[%emt 0:03:36]} 29. Ng5 {[%emt 0:00:49]} Qg7 {[%emt 0:01:20]} 30. Nhxf7 {[%emt 0:00:32]} 1/2-1/2

[Event "Botvinnik Cup 2018"]
[Site "Moscow"]
[Date "2018.08.11"]
[Round "3"]
[White "Lazavik, Denis"]
[Black "Korotylev, Alexey"]
[Result "1-0"]
[ECO "E12"]
[WhiteElo "2235"]
[BlackElo "2573"]
[Annotator "ChessBase"]
[PlyCount "93"]
[EventDate "2018.08.10"]
[EventCountry "RUS"]
[SourceTitle "playchess.com"]
[Source "ChessBase"]
[SourceQuality "1"]
[TimeControl "5400+30"]

1. d4 {[%emt 0:00:00]} Nf6 {[%emt 0:00:00]} 2. c4 {[%emt 0:00:00]} e6 {[%emt 0:00:32]} 3. Nf3 {[%emt 0:00:23]} b6 {[%emt 0:00:08]} 4. a3 {[%emt 0:00:27]} Bb7 {[%emt 0:00:55]} 5. Nc3 {[%emt 0:00:16]} g6 {[%emt 0:00:40]} 6. d5 {[%emt 0:08:46]} Bg7 {[%emt 0:00:18]} 7. e4 {[%emt 0:01:53]} O-O {[%emt 0:00:10]} 8. Be2 {[%emt 0:02:02]} Re8 {[%emt 0:05:04]} 9. O-O {[%emt 0:03:00]} exd5 {[%emt 0:00:45]} 10. exd5 {[%emt 0:00:16]} Na6 {[%emt 0:01:38]} 11. Be3 {[%emt 0:03:20]} Nc5 {[%emt 0:01:28]} 12. Bd4 {[%emt 0:03:43]} c6 {[%emt 0:03:04]} 13. dxc6 {[%emt 0:05:01]} Bxc6 {[%emt 0:01:22]} 14. Qc2 {[%emt 0:03:59]} Rc8 {[%emt 0:01:25]} 15. Rad1 {[%emt 0:07:00]} Qe7 {[%emt 0:04:26]} 16. h3 {[%emt 0:07:32]} h6 {[%emt 0:02:33]} 17. Be3 {[%emt 0:04:15]} Nfe4 {[%emt 0:00:12]} 18. Nd5 {[%emt 0:00:48]} Qf8 {[%emt 0:00:03]} 19. Bd4 {[%emt 0:02:27]} Ba4 {[%emt 0:00:28]} 20. Qb1 {[%emt 0:01:01]} Bxd1 {[%emt 0:00:14]} 21. Rxd1 {[%emt 0:00:09]} Bxd4 {[%emt 0:04:54]} 22. Nxd4 {[%emt 0:02:33]} Qg7 {[%emt 0:00:22]} 23. b4 {[%emt 0:01:29]} Nb7 {[%emt 0:01:21]} 24. Qd3 {[%emt 0:06:11]} Nbd6 {[%emt 0:06:27]} 25. Ne3 {[%emt 0:00:29]} a5 {[%emt 0:04:51]} 26. Bf3 {[%emt 0:01:44]} axb4 {[%emt 0:05:46]} 27. axb4 {[%emt 0:00:06]} Ra8 {[%emt 0:02:14]} 28. Ndc2 {[%emt 0:02:28]} Rac8 {[%emt 0:01:28]} 29. Nd4 {[%emt 0:06:55]} h5 {[%emt 0:05:16]} 30. Nb3 {[%emt 0:02:16]} Qb2 {[%emt 0:00:37]} 31. Nd2 {[%emt 0:00:11]} Qe5 {[%emt 0:01:20]} 32. Nxe4 {[%emt 0:02:33]} Nxe4 {[%emt 0:02:42]} 33. Nd5 {[%emt 0:00:11]} Re6 {[%emt 0:01:31]} 34. Bxe4 {[%emt 0:00:30]} Kg7 {[%emt 0:00:46]} 35. Bf3 {[%emt 0:00:21]} Rd6 {[%emt 0:07:32]} 36. Qd4 {[%emt 0:02:04]} Qxd4 {[%emt 0:01:22]} 37. Rxd4 {[%emt 0:00:06]} Ra8 {[%emt 0:00:04]} 38. Re4 {[%emt 0:01:02]} Ra1+ {[%emt 0:00:10]} 39. Kh2 {[%emt 0:00:08]} Rc1 {[%emt 0:00:40]} 40. b5 {[%emt 0:02:57]} Rc2 {[%emt 0:00:16]} 41. Kg3 {[%emt 0:01:16]} Kf8 {[%emt 0:00:17]} 42. Ne3 {[%emt 0:00:52]} Ra2 {[%emt 0:00:28]} 43. Re5 {[%emt 0:00:51]} Rdd2 {[%emt 0:00:04]} 44. Rd5 {[%emt 0:00:26]} Rxf2 {[%emt 0:00:13]} 45. Rxd7 {[%emt 0:00:11]} f5 {[%emt 0:00:07]} 46. Kf4 {[%emt 0:00:20]} Ra3 {[%emt 0:04:04]} 47. Nd5 {[%emt 0:00:23]} 1-0

[Event "Botvinnik Cup 2018"]
[Site "Moscow"]
[Date "2018.08.11"]
[Round "3"]
[White "Galkin, Gleb"]
[Black "Korotylev, Alexey"]
[Result "1-0"]
[ECO "A43"]
[WhiteElo "2134"]
[BlackElo "2573"]
[Annotator "ChessBase"]
[PlyCount "103"]
[EventDate "2018.08.10"]
[EventCountry "RUS"]
[SourceTitle "playchess.com"]
[Source "ChessBase"]
[SourceQuality "1"]
[TimeControl "5400+30"]

1. d4 {[%emt 0:00:00]} Nf6 {[%emt 0:00:00]} 2. Nf3 {[%emt 0:00:04]} c5 {[%emt 0:00:02]} 3. d5 {[%emt 0:02:56]} b5 {[%emt 0:00:15]} 4. e3 {[%emt 0:06:54]} Bb7 {[%emt 0:02:05]} 5. c4 {[%emt 0:01:27]} g6 {[%emt 0:06:06]} 6. Nc3 {[%emt 0:02:12]} b4 {[%emt 0:01:07]} 7. Ne2 {[%emt 0:01:01]} Bg7 {[%emt 0:00:47]} 8. Ng3 {[%emt 0:01:40]} O-O {[%emt 0:03:04]} 9. e4 {[%emt 0:04:49]} e6 {[%emt 0:00:58]} 10. Be2 {[%emt 0:02:02]} d6 {[%emt 0:01:25]} 11. O-O {[%emt 0:01:07]} exd5 {[%emt 0:00:07]} 12. exd5 {[%emt 0:00:29]} Nbd7 {[%emt 0:06:07]} 13. Bf4 {[%emt 0:06:18]} Qc7 {[%emt 0:01:24]} 14. Qd2 {[%emt 0:03:17]} Rfe8 {[%emt 0:01:50]} 15. Bd3 {[%emt 0:01:59]} Ng4 {[%emt 0:00:06]} 16. Ne4 {[%emt 0:06:04]} Nde5 {[%emt 0:00:37]} 17. Nxe5 {[%emt 0:01:30]} dxe5 {[%emt 0:00:26]} 18. Be3 {[%emt 0:03:48]} Nxe3 {[%emt 0:00:04]} 19. Qxe3 {[%emt 0:00:35]} Rac8 {[%emt 0:00:01]} 20. Rad1 {[%emt 0:06:34]} Red8 {[%emt 0:00:55]} 21. Bc2 {[%emt 0:05:42]} f5 {[%emt 0:00:12]} 22. Ng5 {[%emt 0:03:43]} Bh6 {[%emt 0:00:16]} 23. Qg3 {[%emt 0:01:17]} Bxg5 {[%emt 0:00:56]} 24. Qxg5 {[%emt 0:00:11]} Kh8 {[%emt 0:01:44]} 25. Qf6+ {[%emt 0:04:40]} Qg7 {[%emt 0:00:51]} 26. Qxg7+ {[%emt 0:00:08]} Kxg7 {[%emt 0:00:01]} 27. Rfe1 {[%emt 0:03:19]} Kf6 {[%emt 0:01:06]} 28. f4 {[%emt 0:04:26]} e4 {[%emt 0:00:24]} 29. g4 {[%emt 0:01:59]} Ke7 {[%emt 0:02:34]} 30. gxf5 {[%emt 0:03:01]} gxf5 {[%emt 0:00:04]} 31. Kf2 {[%emt 0:00:11]} Kd6 {[%emt 0:00:30]} 32. Rg1 {[%emt 0:01:18]} Rg8 {[%emt 0:00:14]} 33. Rg3 {[%emt 0:00:43]} Rg6 {[%emt 0:00:32]} 34. Rxg6+ {[%emt 0:01:55]} hxg6 {[%emt 0:00:02]} 35. Rg1 {[%emt 0:00:11]} Rg8 {[%emt 0:00:02]} 36. h4 {[%emt 0:01:20]} Ke7 {[%emt 0:00:58]} 37. h5 {[%emt 0:01:08]} Kf7 {[%emt 0:00:13]} 38. Ba4 {[%emt 0:04:32]} Rh8 {[%emt 0:00:36]} 39. hxg6+ Kg7 {[%emt 0:00:18]} 40. d6 {[%emt 0:03:54]} Rh2+ {[%emt 0:00:51]} 41. Kg3 {[%emt 0:03:49]} Rd2 {[%emt 0:00:04]} 42. d7 {[%emt 0:01:14]} e3 {[%emt 0:00:10]} 43. Rd1 {[%emt 0:01:53]} e2 {[%emt 0:00:23]} 44. Re1 {[%emt 0:00:29]} Kxg6 {[%emt 0:00:56]} 45. Rxe2 {[%emt 0:00:45]} Rd3+ {[%emt 0:00:25]} 46. Kf2 {[%emt 0:00:44]} Be4 {[%emt 0:00:11]} 47. Re3 {[%emt 0:02:41]} Rd2+ {[%emt 0:00:49]} 48. Ke1 {[%emt 0:00:42]} Rd4 {[%emt 0:01:04]} 49. Rh3 {[%emt 0:00:34]} Kg7 {[%emt 0:00:02]} 50. Rh2 {[%emt 0:00:49]} Bd3 {[%emt 0:00:29]} 51. Rd2 {[%emt 0:00:47]} Kf6 {[%emt 0:00:26]} 52. Bc2 {[%emt 0:00:33]} 1-0

[Event "Botvinnik Cup 2018"]
[Site "Moscow"]
[Date "2018.08.11"]
[Round "3"]
[White "Rakhmatullaev, Almas"]
[Black "Komliakov, Viktor"]
[Result "1/2-1/2"]
[ECO "A41"]
[WhiteElo "1896"]
[BlackElo "2366"]
[Annotator "NA"]
[PlyCount "71"]
[EventDate "2018.08.10"]
[EventCountry "RUS"]
[SourceTitle "playchess.com"]
[Source "ChessBase"]
[SourceQuality "1"]
[TimeControl "5400+30"]

1. d4 {[%emt 0:00:00]} d6 {[%emt 0:00:05]} 2. c4 {[%emt 0:00:14]} e5 {[%emt 0:00:08]} 3. dxe5 {[%emt 0:03:47]} dxe5 {[%emt 0:00:13]} 4. Qxd8+ {[%emt 0:00:04]} Kxd8 {[%emt 0:00:02]} 5. Nc3 {[%emt 0:01:43]} Be6 {[%emt 0:00:29]} 6. b3 {[%emt 0:01:09]} Nc6 {[%emt 0:00:10]} 7. Bb2 {[%emt 0:00:05]} Nf6 {[%emt 0:00:14]} 8. e3 {[%emt 0:00:49]} a5 {[%emt 0:00:56]} 9. h3 {[%emt 0:02:32]} Nd7 {[%emt 0:02:03]} 10. O-O-O {[%emt 0:11:02]} Kc8 {[%emt 0:00:24]} 11. Na4 {[%emt 0:04:37]} Nc5 {[%emt 0:08:42]} 12. Nxc5 {[%emt 0:03:12]} Bxc5 {[%emt 0:00:14]} 13. Nf3 {[%emt 0:00:16]} f6 {[%emt 0:00:05]} 14. a3 {[%emt 0:02:18]} Nd8 {[%emt 0:08:18]} 15. Nd2 {[%emt 0:02:12]} Be7 {[%emt 0:00:29]} 16. Bd3 {[%emt 0:03:50]} Nf7 {[%emt 0:02:54]} 17. f4 {[%emt 0:04:59]} c6 {[%emt 0:01:54]} 18. f5 {[%emt 0:06:53]} Bd7 {[%emt 0:00:20]} 19. g4 {[%emt 0:00:02]} Kc7 {[%emt 0:00:58]} 20. Ne4 {[%emt 0:07:27]} b6 {[%emt 0:05:08]} 21. Kb1 {[%emt 0:02:07]} Rad8 {[%emt 0:01:40]} 22. c5 {[%emt 0:02:42]} Bxc5 {[%emt 0:02:06]} 23. Nxc5 {[%emt 0:02:15]} bxc5 {[%emt 0:00:31]} 24. Rc1 {[%emt 0:00:08]} Kb6 {[%emt 0:00:28]} 25. a4 {[%emt 0:01:02]} Nd6 {[%emt 0:01:01]} 26. Ba3 {[%emt 0:02:12]} Nb7 {[%emt 0:00:52]} 27. Rcd1 {[%emt 0:02:53]} Bc8 {[%emt 0:05:13]} 28. Kc2 {[%emt 0:05:47]} Nd6 {[%emt 0:01:31]} 29. Rd2 {[%emt 0:00:57]} Rd7 {[%emt 0:03:43]} 30. Bc4 {[%emt 0:02:03]} Nxc4 {[%emt 0:07:04]} 31. bxc4 {[%emt 0:03:26]} Rxd2+ {[%emt 0:00:12]} 32. Kxd2 {[%emt 0:00:01]} h5 {[%emt 0:00:07]} 33. Rb1+ {[%emt 0:00:59]} Kc7 {[%emt 0:00:06]} 34. Bxc5 {[%emt 0:00:11]} hxg4 {[%emt 0:00:05]} 35. hxg4 {[%emt 0:00:04]} Rh2+ {[%emt 0:02:10]} 36. Kc3 {[%emt 0:01:04]} 1/2-1/2

[Event "Botvinnik Cup 2018"]
[Site "Moscow"]
[Date "2018.08.11"]
[Round "3"]
[White "Naqopia, Giorgi"]
[Black "Khusnutdinov, Rustam"]
[Result "0-1"]
[ECO "A39"]
[WhiteElo "1857"]
[BlackElo "2470"]
[Annotator "ChessBase"]
[PlyCount "126"]
[EventDate "2018.08.10"]
[EventCountry "RUS"]
[SourceTitle "playchess.com"]
[Source "ChessBase"]
[SourceQuality "1"]
[TimeControl "5400+30"]

1. Nf3 {[%emt 0:02:49]} Nf6 {[%emt 0:00:05]} 2. g3 {[%emt 0:00:06]} c5 {[%emt 0:00:48]} 3. Bg2 {[%emt 0:00:07]} Nc6 {[%emt 0:00:04]} 4. O-O {[%emt 0:00:14]} g6 {[%emt 0:00:05]} 5. c4 {[%emt 0:00:48]} Bg7 {[%emt 0:00:06]} 6. Nc3 {[%emt 0:00:04]} O-O {[%emt 0:00:02]} 7. d4 {[%emt 0:02:06]} cxd4 {[%emt 0:00:02]} 8. Nxd4 {[%emt 0:00:08]} Qa5 {[%emt 0:00:02]} 9. Nc2 {[%emt 0:08:53]} d6 {[%emt 0:00:09]} 10. Rb1 {[%emt 0:02:32]} Qh5 {[%emt 0:05:01]} 11. Ne3 {[%emt 0:13:58]} Bh3 {[%emt 0:04:04]} 12. Ncd5 {[%emt 0:01:38]} Bxg2 {[%emt 0:01:11]} 13. Kxg2 {[%emt 0:00:06]} Nxd5 {[%emt 0:00:57]} 14. Nxd5 {[%emt 0:04:19]} Qf5 {[%emt 0:00:31]} 15. Qd3 {[%emt 0:03:29]} Qxd3 {[%emt 0:00:07]} 16. exd3 {[%emt 0:00:01]} e6 {[%emt 0:00:03]} 17. Nf4 {[%emt 0:00:47]} Rfb8 {[%emt 0:02:36]} 18. b3 {[%emt 0:04:07]} b5 {[%emt 0:01:41]} 19. Bb2 {[%emt 0:02:28]} a5 {[%emt 0:01:59]} 20. Rfd1 {[%emt 0:08:26]} Nd4 {[%emt 0:03:26]} 21. Bxd4 {[%emt 0:04:40]} Bxd4 {[%emt 0:00:02]} 22. Ne2 {[%emt 0:00:05]} Bf6 {[%emt 0:00:10]} 23. d4 {[%emt 0:02:51]} bxc4 {[%emt 0:08:20]} 24. bxc4 {[%emt 0:00:09]} Rb4 {[%emt 0:00:01]} 25. Rxb4 {[%emt 0:01:08]} axb4 {[%emt 0:00:01]} 26. Rd2 {[%emt 0:00:05]} Kf8 {[%emt 0:07:52]} 27. Rb2 {[%emt 0:12:18]} Ra4 {[%emt 0:00:41]} 28. f4 {[%emt 0:02:57]} Ke7 {[%emt 0:00:19]} 29. Kf2 {[%emt 0:00:06]} Kd7 {[%emt 0:01:58]} 30. Ke3 {[%emt 0:02:05]} Ra3+ {[%emt 0:00:09]} 31. Rb3 {[%emt 0:00:13]} Rxa2 {[%emt 0:00:01]} 32. Rxb4 {[%emt 0:00:05]} Ra3+ {[%emt 0:00:02]} 33. Kd2 {[%emt 0:00:22]} Kc7 {[%emt 0:00:04]} 34. Nc3 {[%emt 0:00:57]} Ra1 {[%emt 0:01:16]} 35. Kd3 {[%emt 0:00:58]} h5 {[%emt 0:06:16]} 36. Rb5 {[%emt 0:10:01]} h4 {[%emt 0:02:08]} 37. c5 {[%emt 0:03:57]} dxc5 {[%emt 0:03:19]} 38. Rxc5+ {[%emt 0:00:07]} Kd7 {[%emt 0:00:01]} 39. gxh4 {[%emt 0:04:45]} Bxh4 {[%emt 0:01:53]} 40. Rb5 {[%emt 0:03:11]} Ra7 {[%emt 0:03:07]} 41. d5 {[%emt 0:00:50]} Bd8 {[%emt 0:00:33]} 42. dxe6+ {[%emt 0:00:47]} Kxe6 {[%emt 0:00:01]} 43. Re5+ {[%emt 0:00:59]} Kf6 {[%emt 0:00:06]} 44. Nd5+ {[%emt 0:00:36]} Kg7 {[%emt 0:00:01]} 45. Re8 {[%emt 0:00:20]} Bf6 {[%emt 0:00:56]} 46. Nxf6 {[%emt 0:00:31]} Kxf6 {[%emt 0:00:01]} 47. Re2 {[%emt 0:00:39]} Kf5 {[%emt 0:00:16]} 48. Rf2 {[%emt 0:00:29]} Ra3+ {[%emt 0:00:50]} 49. Kd4 {[%emt 0:00:11]} Ra4+ {[%emt 0:00:01]} 50. Ke3 {[%emt 0:00:08]} Re4+ {[%emt 0:00:01]} 51. Kd3 {[%emt 0:00:39]} Rxf4 {[%emt 0:04:39]} 52. Ra2 {[%emt 0:00:15]} Kg4 {[%emt 0:00:39]} 53. Ke3 {[%emt 0:01:06]} Rf5 {[%emt 0:02:12]} 54. Rb2 {[%emt 0:00:47]} Kh3 {[%emt 0:00:13]} 55. Ra2 {[%emt 0:00:09]} g5 {[%emt 0:01:52]} 56. Ke4 {[%emt 0:00:43]} Rf4+ {[%emt 0:00:07]} 57. Ke3 {[%emt 0:00:03]} f6 {[%emt 0:00:05]} 58. Rb2 {[%emt 0:00:11]} Rf1 {[%emt 0:00:28]} 59. Re2 {[%emt 0:00:36]} f5 {[%emt 0:01:30]} 60. Ra2 {[%emt 0:01:21]} g4 {[%emt 0:00:05]} 61. Re2 {[%emt 0:00:31]} f4+ {[%emt 0:00:28]} 62. Ke4 {[%emt 0:00:24]} g3 {[%emt 0:00:03]} 63. hxg3 {[%emt 0:00:18]} fxg3 {[%emt 0:00:02]} 0-1

[Event "Botvinnik Cup 2018"]
[Site "Moscow"]
[Date "2018.08.11"]
[Round "3"]
[White "Lomaia, Diana"]
[Black "Khusnutdinov, Rustam"]
[Result "1/2-1/2"]
[ECO "B12"]
[WhiteElo "1851"]
[BlackElo "2470"]
[Annotator "ChessBase"]
[PlyCount "74"]
[EventDate "2018.08.10"]
[EventCountry "RUS"]
[SourceTitle "playchess.com"]
[Source "ChessBase"]
[SourceQuality "1"]
[TimeControl "5400+30"]

1. e4 {[%emt 0:01:12]} c6 {[%emt 0:00:00]} 2. d4 {[%emt 0:00:06]} d5 {[%emt 0:00:00]} 3. e5 {[%emt 0:00:30]} Bf5 {[%emt 0:00:00]} 4. h4 {[%emt 0:02:28]} Qb6 {[%emt 0:00:00]} 5. g4 {[%emt 0:01:11]} Bd7 {[%emt 0:00:00]} 6. c3 {[%emt 0:02:02]} h5 {[%emt 0:02:40]} 7. gxh5 {[%emt 0:02:35]} e6 {[%emt 0:00:05]} 8. Bd3 {[%emt 0:02:10]} c5 {[%emt 0:00:06]} 9. Qg4 {[%emt 0:01:28]} Nc6 {[%emt 0:00:31]} 10. Ne2 {[%emt 0:00:49]} cxd4 {[%emt 0:04:51]} 11. cxd4 {[%emt 0:03:12]} Nh6 {[%emt 0:00:03]} 12. Qf4 {[%emt 0:01:25]} Nb4 {[%emt 0:00:16]} 13. Rh3 {[%emt 0:06:38]} Nxd3+ {[%emt 0:01:05]} 14. Rxd3 {[%emt 0:00:09]} Nf5 {[%emt 0:00:01]} 15. Ng3 {[%emt 0:02:26]} Nxg3 {[%emt 0:03:44]} 16. Rxg3 {[%emt 0:03:06]} Rxh5 {[%emt 0:00:15]} 17. Rg5 {[%emt 0:01:39]} Rh7 {[%emt 0:05:26]} 18. Rg4 {[%emt 0:06:48]} Be7 {[%emt 0:01:25]} 19. Qg3 {[%emt 0:00:55]} O-O-O {[%emt 0:00:34]} 20. Qb3 {[%emt 0:11:40]} Rxh4 {[%emt 0:03:40]} 21. Qxb6 {[%emt 0:01:42]} axb6 {[%emt 0:04:49]} 22. Rxh4 {[%emt 0:09:40]} Bxh4 {[%emt 0:00:12]} 23. Nc3 {[%emt 0:02:54]} f6 {[%emt 0:01:26]} 24. exf6 {[%emt 0:00:41]} gxf6 {[%emt 0:02:51]} 25. Be3 {[%emt 0:00:35]} Rg8 {[%emt 0:05:16]} 26. Ke2 {[%emt 0:00:17]} Bg5 {[%emt 0:08:22]} 27. Rg1 {[%emt 0:01:33]} Rg7 {[%emt 0:00:07]} 28. Bxg5 {[%emt 0:09:32]} fxg5 {[%emt 0:00:06]} 29. Ke3 {[%emt 0:01:28]} Kd8 {[%emt 0:01:11]} 30. Nb1 {[%emt 0:01:36]} Ke7 {[%emt 0:03:57]} 31. Nd2 {[%emt 0:00:07]} Kf6 {[%emt 0:00:50]} 32. Nf3 {[%emt 0:00:14]} Be8 {[%emt 0:00:01]} 33. a3 {[%emt 0:02:14]} Rc7 {[%emt 0:08:46]} 34. Nxg5 {[%emt 0:01:58]} Rc2 {[%emt 0:00:03]} 35. Nh7+ {[%emt 0:00:18]} Kf7 {[%emt 0:00:17]} 36. Ng5+ {[%emt 0:00:48]} Kf6 {[%emt 0:01:47]} 37. Nh7+ {[%emt 0:00:07]} Kf7 {[%emt 0:00:09] Ke4} 1/2-1/2

[Event "Botvinnik Cup 2018"]
[Site "Moscow"]
[Date "2018.08.11"]
[Round "3"]
[White "Chiriac, Daniel"]
[Black "Egin, Vladimir"]
[Result "0-1"]
[ECO "C45"]
[WhiteElo "1841"]
[BlackElo "2317"]
[Annotator "NA"]
[PlyCount "70"]
[EventDate "2018.08.10"]
[EventCountry "RUS"]
[SourceTitle "playchess.com"]
[Source "ChessBase"]
[SourceQuality "1"]
[TimeControl "5400+30"]

1. e4 {[%emt 0:00:00]} e5 {[%emt 0:00:00]} 2. Nf3 {[%emt 0:00:00]} Nc6 {[%emt 0:00:00]} 3. d4 {[%emt 0:00:00]} exd4 {[%emt 0:00:00]} 4. Nxd4 {[%emt 0:00:00]} Bc5 {[%emt 0:00:00]} 5. Nxc6 {[%emt 0:00:03]} Qf6 {[%emt 0:00:00]} 6. Qf3 {[%emt 0:00:06]} bxc6 {[%emt 0:00:03]} 7. Nc3 {[%emt 0:00:09]} d6 {[%emt 0:00:51]} 8. Bc4 {[%emt 0:00:49]} Qxf3 {[%emt 0:01:16]} 9. gxf3 {[%emt 0:00:41]} Ne7 {[%emt 0:01:50]} 10. Be3 {[%emt 0:00:13]} Bb6 {[%emt 0:00:28]} 11. O-O-O {[%emt 0:01:43]} Be6 {[%emt 0:00:24]} 12. Bb3 {[%emt 0:01:02]} O-O {[%emt 0:01:23]} 13. f4 {[%emt 0:07:27]} Bxb3 {[%emt 0:06:06]} 14. axb3 {[%emt 0:00:07]} f5 {[%emt 0:00:47]} 15. Bxb6 {[%emt 0:16:14]} axb6 {[%emt 0:05:29]} 16. e5 {[%emt 0:00:03]} dxe5 {[%emt 0:03:02]} 17. fxe5 {[%emt 0:02:42]} Ng6 {[%emt 0:04:49]} 18. Rhe1 {[%emt 0:01:02]} Rae8 {[%emt 0:02:31]} 19. e6 {[%emt 0:03:50]} Rf6 {[%emt 0:01:20]} 20. Rd7 {[%emt 0:00:39]} Rfxe6 {[%emt 0:02:00]} 21. Rxe6 {[%emt 0:00:05]} Rxe6 {[%emt 0:00:05]} 22. Rxc7 {[%emt 0:00:04]} b5 {[%emt 0:00:12]} 23. Kd1 {[%emt 0:02:37]} Nf4 {[%emt 0:01:37]} 24. Kd2 {[%emt 0:01:54]} b4 {[%emt 0:00:52]} 25. Nd1 {[%emt 0:00:59]} Nd5 {[%emt 0:04:56]} 26. Rc8+ {[%emt 0:02:04]} Kf7 {[%emt 0:01:26]} 27. Ne3 {[%emt 0:00:08]} Nxe3 {[%emt 0:00:48]} 28. fxe3 {[%emt 0:00:04]} g5 {[%emt 0:00:25]} 29. Rb8 {[%emt 0:04:01]} Rh6 {[%emt 0:02:06]} 30. Rxb4 {[%emt 0:04:32]} Rxh2+ {[%emt 0:02:11]} 31. Kd1 {[%emt 0:00:05]} g4 {[%emt 0:02:03]} 32. Rf4 {[%emt 0:00:30]} Kg6 {[%emt 0:00:39]} 33. Ke1 {[%emt 0:22:38]} Rxc2 {[%emt 0:01:51]} 34. e4 {[%emt 0:00:35]} g3 {[%emt 0:00:36]} 35. Rf3 {[%emt 0:02:08]} g2 {[%emt 0:00:36]} 0-1